Cogmind - Beta 15 @@@ ROGUE MODE // 2025.09.27 @ 14:40:34 Player: Gruff Result: Destroyed by G-34 Mercenary with Small Laser Performance ------------- Evolutions (0) 0 Regions Visited (1) 200 Robots Destroyed (8) 40 Value Destroyed (168) 168 Prototype IDs (0) 0 Alien Tech Used (0) 0 Bonus (0) 0 TOTAL SCORE: 408 Bonus ------- None Cogmind --------- Core Integrity 0/250 Matter 300/300 Energy 100/100 System Corruption 0% Temperature Cool (6) Movement Core (200) Ox3 Location -10/Materials Parts ------- > --- POWER (1) -------- (None) > --- PROPULSION (2) --- (None) > --- UTILITY (2) ------ Medium Storage Unit > --- WEAPON (2) ------- (None) > --- INVENTORY (10) --- Ion Engine Ion Engine Light Treads Light Treads Wheel Wheel Hover Unit Targeting Computer Peak State ------------ > --- POWER ------------ Ion Engine > --- PROPULSION ------- Aluminum Leg Aluminum Leg > --- UTILITY ---------- Small Storage Unit Seismic Detector > --- WEAPON ----------- Medium Laser Small Laser > --- INVENTORY -------- Ion Engine Light Treads Light Treads Wheel Wheel [Rating: 7] Favorites ----------- Power Ion Engine Engine Ion Engine Propulsion Aluminum Leg Leg Aluminum Leg Wheel Wheel Utility Seismic Detector Device Seismic Detector Storage Medium Storage Unit Weapon Medium Laser Energy Gun Medium Laser Special Melee Weapon Datajack Build | -11 -10 ------- Run | Yrd Mat Slots Evolved . | . . Power . | . . Propulsion . | . . Utility . | . . Weapon . | . . Parts Attached 13 | 9 4 Power 2 | 1 1 Engine 2 | 1 1 Core . | . . Reactor . | . . Propulsion 5 | 4 1 Treads . | . . Leg 3 | 2 1 Wheel 2 | 2 . Hover . | . . Flight . | . . Utility 3 | 2 1 Device 1 | 1 . Storage 2 | 1 1 Processor . | . . Hackware . | . . Protection . | . . Artifact . | . . Weapon 3 | 2 1 Energy Gun 2 | 2 . Energy Cannon . | . . Ballistic Gun . | . . Ballistic Cannon . | . . Launcher . | . . Special Weapon . | . . Impact Weapon . | . . Slashing Weapon . | . . Piercing Weapon . | . . Special Melee Weapon 1 | . 1 Unidentified Prototypes . | . . Parts Lost 3 | . 3 Power . | . . Propulsion 1 | . 1 Utility 1 | . 1 Weapon 1 | . 1 Highest Loss Streak 2 | . 2 To Critical Strikes . | . . Average Backups 5 | 3 6 Power 1 | . 1 Propulsion 4 | 2 4 Utility . | . . Weapon . | . . Tool/Special . | . . Unused Backups 5 | . 5 Power 1 | . 1 Propulsion 3 | . 3 Utility 1 | . 1 Weapon . | . . Tool/Special . | . . Average Slot Usage (%) 81 | . 81 Engine 12 | . 12 Leg 21 | . 21 Device 13 | . 13 Storage 14 | . 14 Energy Gun 17 | . 17 Special Melee Weapon 2 | . 2 Peak Build Rating 7 | 7 7 Average Rating 5 | 4 5 On Entrance 3 | . 7 Naked Turns . | . . Heaviest Build 19 | 14 19 Greatest Support 20 | 20 20 Greatest Overweight (x) 5 | 1 5 Average Overweight (x) . | . . Largest Inventory Capacity 10 | 8 10 Average Capacity 9 | 7 9 Most Carried 8 | 5 8 Average Carried 6 | 3 6 Final Capacity 10 | 8 10 Final Carried 8 | 5 8 Class Distribution -------------------- 100% | Mutant Dominant Class ---------------- Mutant | -10/Materials Resources | -11 -10 ----------- Run | Yrd Mat Matter Collected 313 | 176 137 Remotely . | . . Salvage Created 209 | 27 182 Parts 17 | 4 13 Haulers Intercepted . | . . Recyclers Shooed . | . . Parts Field Recycled . | . . Retrieved Matter . | . . Parts Self-Destructed . | . . Prevented . | . . Kills | -11 -10 ------- Run | Yrd Mat Combat Hostiles Destroyed 6 | . 6 Guns 6 | . 6 Classes Destroyed 4 | 1 3 Tunneler 1 | 1 . Watcher 1 | . 1 Swarmer 3 | . 3 Grunt 3 | . 3 Best Kill Streak 4 | 1 4 Combat Bots Only 3 | . 3 Max Kills in Single Turn 1 | 1 1 Gunslinging . | . . Exploded . | . . Melee . | . . Uniques/NPCs Destroyed . | . . Combat | -11 -10 -------- Run | Yrd Mat Hostile Shots Fired 71 | . 71 Missed 12 | . 12 Hits 59 | . 59 Projectile 59 | . 59 Damage Taken 601 | . 601 Core 254 | . 254 Absorbed by Shields . | . . Core Remaining (%) 100 | 100 . Volleys Fired 33 | 1 32 Largest 2 | 2 2 Hottest 90 | 90 90 Shots Fired 46 | 2 44 Gun 46 | 2 44 Cannon . | . . Launcher . | . . Special . | . . Kinetic . | . . Thermal 46 | 2 44 Explosive . | . . Electromagnetic . | . . Robot Hit Streak 8 | 1 8 Robot Miss Streak 6 | . 6 Penetration Max . | . . Secondary Targets . | . . Shots Hit Robots 26 | 1 25 Core Hits 18 | 2 16 Critical Kills . | . . Critical Parts Destroyed . | . . Critical Strikes 2 | . 2 Burn 2 | . 2 Melee Attacks . | . . Impact . | . . Slashing . | . . Piercing . | . . Sneak Attacks . | . . Combat Hostiles . | . . Follow-up Attacks . | . . Damage Inflicted 347 | 23 324 Guns 321 | 12 309 Cannons . | . . Explosions . | . . Melee . | . . Ramming 26 | 11 15 Kinetic . | . . Thermal 321 | 12 309 Explosive . | . . Electromagnetic . | . . Impact . | . . Slashing . | . . Piercing . | . . Highest Corruption . | . . Average Corruption . | . . Corruption Purged . | . . Corruption Blocked . | . . Overload Shots . | . . Overflow Damage . | . . Projectiles . | . . Explosions . | . . Melee . | . . Knockbacks 1 | . 1 Impact 1 | . 1 Kinetic . | . . Secondary . | . . Self-Inflicted Damage 2 | . 2 Shots . | . . Rammed 6 | . 6 Targets Rammed 23 | 5 18 Kicked 17 | 5 12 Crushed . | . . Highest Temperature 330 | 30 330 Average Temperature 116 | 18 119 Received Heat Transfer 315 | . 315 Siege Activations . | . . Martial Activations . | . . Shielding Activations . | . . Robots Disrupted . | . . Combat Hostiles . | . . Robots Corrupted . | . . Combat Hostiles . | . . Parts Fried . | . . Impact Corruptions . | . . Robots Melted . | . . Combat Hostiles . | . . Parts Melted 2 | . 2 Heat Transferred 1086 | 37 1049 Parts Sabotaged . | . . Parts Stolen . | . . Parts Stripped . | . . Power Chain Reactions . | . . Alert | -11 -10 ------- Run | Yrd Mat Maximum Alert Level . | . . Low Security (%) 100 | 100 100 Level 1 . | . . Level 2 . | . . Level 3 . | . . Level 4 . | . . Level 5 . | . . High Security . | . . Max Security . | . . Peak Influence 60 | 5 60 Initial . | . . Average 14 | . 16 Influence Increases 172 | 5 167 Destroy 0b10 Robot/C 120 | . 120 Destroy 0b10 Robot/NC 10 | 5 5 Destroy Leader 32 | . 32 Trap Triggered on 0b10 10 | . 10 Influence Decreases 172 | 5 167 Time Decay 162 | 5 157 Lost Part 10 | . 10 Squads Dispatched 2 | . 2 Investigation 1 | . 1 Extermination . | . . Reinforcement 1 | . 1 Assault . | . . Garrison . | . . Intercept . | . . Searches Triggered . | . . Construction Impeded . | . . Haulers Reinforced . | . . Active Scanning Responses . | . . Cargo Convoy Interrupts . | . . Stealth | -11 -10 --------- Run | Yrd Mat Distress Signals 1 | . 1 Communications Jammed . | . . Distress Signals . | . . Times Spotted 14 | . 14 Peak Tracking Total 4 | . 4 Tactical Retreats . | . . Traps | -11 -10 ------- Run | Yrd Mat Traps Triggered 4 | . 4 Indirectly . | . . Trap Hack Attempts 14 | . 14 Triggered . | . . Disarmed 1 | . 1 Reprogrammed 1 | . 1 Reused 1 | . 1 Traps Extracted . | . . Installed . | . . Triggered 1 | . 1 Machines | -11 -10 ---------- Run | Yrd Mat Machines Disabled . | . . Max in Single Turn . | . . Machines Repaired . | . . Machines Dismantled . | . . Machines Sabotaged . | . . Overloaded Fab Kills . | . . Hacking | -11 -10 --------- Run | Yrd Mat Machines Accessed 1 | . 1 Terminals . | . . Fabricators . | . . Repair Stations . | . . Recycling Units 1 | . 1 Scanalyzers . | . . Garrison Access . | . . Total Hacks 2 | . 2 Successful . | . . Failed 2 | . 2 Catastrophic . | . . Database Lockouts . | . . Manual . | . . Terminals . | . . Fabricators . | . . Repair Stations . | . . Recycling Units 2 | . 2 Scanalyzers . | . . Garrison Access . | . . Terminal Hacks . | . . Fabricator Hacks . | . . Repair Station Hacks . | . . Recycling Unit Hacks . | . . Scanalyzer . | . . Garrison Access Hacks . | . . Unauthorized Hacks . | . . Terminals . | . . Fabricators . | . . Repair Stations . | . . Recycling Units . | . . Scanalyzers . | . . Garrison Access . | . . Data Cores Recovered . | . . Used . | . . Hacking Detections 1 | . 1 Full Trace Events 1 | . 1 Feedback Events . | . . Feedback Blocked . | . . Robot Schematics Acquired . | . . Robots Built . | . . Authchips . | . . Time . | . . Total Robot Build Rating . | . . Part Schematics Acquired . | . . Parts Built . | . . Authchips . | . . Time . | . . Total Part Build Rating . | . . Parts Repaired . | . . Time . | . . Parts Recycled . | . . Recycled Matter . | . . Retrieved Matter . | . . Retrieved Components . | . . Parts Scanalyzed . | . . Part Schematics Acquired . | . . Parts Damaged . | . . Bothacking | -11 -10 ------------ Run | Yrd Mat Used RIF Installer . | . . Robots Hacked . | . . Non-combat . | . . Combat . | . . Robot Hacks Applied . | . . Relay Couplers Released . | . . Fabnet Peak Effective % . | . . Robots Rewired . | . . Allies Hacked . | . . Hacks Repelled . | . . Allies | -11 -10 -------- Run | Yrd Mat Total Allies . | . . Largest Group . | . . Highest-Rated Group . | . . Highest-Rated Ally . | . . Total Orders . | . . Ally Attacks . | . . Total Damage . | . . Kills . | . . Allies Corrupted . | . . Allies Melted . | . . Intel | -11 -10 ------- Run | Yrd Mat Active Infowar (turns) 590 | 16 574 Seismic 590 | 16 574 Robot Analysis Total . | . . Derelict Logs Recovered . | . . Drone Launches . | . . Drone Recoveries . | . . Exploration | -11 -10 ------------- Run | Yrd Mat Turns Passed 701 | 112 589 Spaces Moved 360 | 75 285 Core 23 | 11 12 Treads . | . . Legs 336 | 63 273 Wheels 1 | 1 . Hover . | . . Flight . | . . Fastest Speed 50 | 50 120 Average Speed 136 | 113 141 Slowest Speed 300 | 120 300 Overloaded Moves . | . . Propulsion Burnouts . | . . Robots Hopped . | . . Potential Cave-ins . | . . Cave-ins Triggered . | . . Exploration Rate (%) 23 | 4 42 Regions Visited 1 Branch Regions . Pre-discovered Areas . | . . Known Exits Taken . | . . Unknown Exits Taken 1 | 1 . Scrap Searched . | . . Spaces Dug . | . . Terrain Destroyed . | . . Melee . | . . Projectile . | . . AOE . | . . Terrain Rammed . | . . Walls Destroyed . | . . Machines Disabled . | . . Actions | -11 -10 --------- Run | Yrd Mat Total 500 | 95 405 Wait 42 | . 42 Move 359 | 74 285 Hop . | . . Pick Up 6 | 4 2 Fast Attach 16 | 8 8 Attach 1 | 1 . Detach 2 | 2 . Swap 3 | . 3 Drop 1 | . 1 Fire 33 | 1 32 Melee . | . . Ram 6 | . 6 Kick 17 | 5 12 Crush . | . . Escape Stasis . | . . Rewire . | . . Trap 14 | . 14 Miscellaneous . | . . Route ------- -11/Scrapyard -10/Materials (discovered 2 exits: [*Mat] / [*Sub]) History --------- Turn | Location | Event 7 | -11/Scrapyard | Discovered new exit (range 16) 113 | -11/Scrapyard | Entered Materials 233 | -10/Materials | Discovered new exit (range 7) 288 | -10/Materials | Discovered new exit (range 10) 311 | -10/Materials | Build established: Mutant 683 | -10/Materials | Core integrity fell below 50% 693 | -10/Materials | Core integrity fell below 20% 702 | -10/Materials | Destroyed by G-34 Mercenary with Small Laser Last Messages --------------- Massive razor-sharp blades shoot up from within the floor. Ion Engine severed. Aluminum Leg severed. Med. Laser severed. R-06 Scavenger collects Ion Engine. R-06 Scavenger collects Med. Laser. R-06 Scavenger collects Aluminum Leg. Acquired Aluminum Leg. U-05 Engineer lays Concrete. Kicked R-06 Scavenger. R-06 Scavenger knocked back. Kicked G-34 Mercenary. K-01 Serf cleans the Terminal. Kicked G-34 Mercenary. Kicked G-34 Mercenary out of the way. Kicked G-34 Mercenary. Aluminum Leg destroyed. M-13 Machinist repairs G-34 Mercenary. Slammed into G-34 Mercenary. Seismic Detector destroyed. Map ----- +----------------------------------------------------+ | | | ??????????????????????????????????????? | | ????????????###########???????????????? | | ????????????# #???????????????? | | ????????????#"" """" #???????????????? | | ????????????#"T """" #??###########??? | | ????????????#"" """" #??# #??? | | ????????????# #### #??? | | ?????######## # # #??? | | ?????# # # # #??? | | ?????# """ # / + #??? | | ?????# """ ########### # #??? | | ?????# """ #?????????# # #??? | | ?????# #???#####?# # #??? | | ?????# = #???#"""#?# ###+#######??? | | #########+#######"Y"### ### #####????? | | % #????? | | ^^ ^ #????? | | ^ g #### #????? | | ###### ^ #?##+##+####?? | | ?????# """ """ #?# #?? | | ?????# """ """ #?# """ #?? | | ?????# """ """ ""T"" ### """^ #?? | | ?????# a """""g% # """ #?? | | ?????# r m + #?? | | ?????# @ #""" #?? | | ?????# #"T"############# #"R #?? | | ?????# #"""#???????????# #""" #?? | | ?????# #####???????????# # #?? | | ?????# #???????????????# ##########?? | | ?????# #???????????????# #??????????? | | ????? #??????????????? ??????????? | | ?????? ????????????????###??????????? | | ?????? ?????????????????????????????? | | ??????????????????????????????????????? | | ??????????????????????????????????????? | | ??????????????????????????????????????? | | ??????????????????????????????????????? | | ??????????????????????????????????????? | | ??????????????????????????????????????? | | ??????????????????????????????????????? | | ??????????????????????????????????????? | | ??????????????????????????????????????? | | ??????????????????????????????????????? | | ??????????????????????????????????????? | | ??????????????????????????????????????? | | ??????????????????????????????????????? | | ??????????????????????????????????????? | | ??????????????????????????????????????? | | ??????????????????????????????????????? | +----------------------------------------------------+ Best States ------------- Heat Dissipation 25 Energy Generation 10 Energy Capacity 250 Matter Stores 300 Matter Capacity 300 Sight Range 16 Terrain Scan Density 10 Evasion (%) 55 Item Schematics ----------------- None Robot Schematics ------------------ None Fabricated ------------ Nothing Repaired ---------- Nothing Alien Tech Used ----------------- None Achievements -------------- None Challenges ------------ None Game ------ Seed SupersonicRingThruster Manual? 0 Play Time 00:05:15 Cumulative 52.0 hours Start 2025.09.27 @ 14:24:06 End 2025.09.27 @ 14:40:34 Sessions 1 Manual Loads 0 Difficulty Rogue Special Mode None Game No. 66 Rogue 66 Adventurer 0 Explorer 0 Win Type - Total 0 Types 0/0/0/0/0/0/0/0/0/0 Lore% 35 Gallery% 34 Achievement% 30 Wizard Run 0 Options --------- Layout 0 ASCII 0 Keyboard 1 Movement Numpad Keybinds 0 Fullscreen 1 Font 24/Smallcaps Map View 183x50 Zoom Use 0% Tactical HUD 0 Map Filters NONE Filters NONE Steam 1 RUN: d39b10b3-d4f4-4eac-8351-1ab96332d4c0